bitfinex/quotes_BTCUSD_20251205
["timestamp","ask_amount","ask_price","bid_price","bid_amount"]
[1764926390217,0.01093577,91443.0,91436.0,0.01093661]
[1764926390418,0.01193541,91446.0,91438.0,0.01093637]
[1764926390720,0.001,91446.0,91442.0,0.01093589]
[1764926390923,0.01093517,91448.0,91444.0,0.01093565]
[1764926391133,0.01093517,91448.0,91440.0,0.01093613]
[1764926391134,0.21867637,91460.0,91438.0,0.35094342]
[1764926391341,0.01093469,91452.0,91448.0,0.01093517]
[1764926391550,0.22960866,91460.0,91451.0,0.22962997]
[1764926391757,0.22960866,91460.0,91442.0,0.56965924]
[1764926391758,0.01093433,91455.0,91449.0,0.01093505]
[1764926392129,0.01093457,91453.0,91448.0,0.01093517]
[1764926392338,0.001,91448.0,91443.0,0.03251495]
[1764926392538,0.01093553,91445.0,91438.0,0.01093637]
[1764926392733,0.01093565,91444.0,91440.0,0.01093613]
[1764926392914,0.01193517,91448.0,91440.0,0.01093613]
[1764926393192,0.001,91448.0,91446.0,0.2187083]
[1764926393614,0.01093541,91446.0,91437.0,0.08172575]
[1764926393819,0.21870598,91447.0,91440.0,0.01093613]
[1764926394024,0.01093493,91450.0,91441.0,0.21872026]
[1764926394224,0.01093565,91444.0,91437.0,0.42173268]
[1764926394434,0.01093577,91443.0,91438.0,0.01093637]
[1764926394636,0.01093517,91448.0,91443.0,0.01093577]
[1764926394810,0.01093565,91444.0,91439.0,0.01093625]
[1764926395046,0.001,91447.0,91440.0,0.01093613]
[1764926395249,0.01093565,91444.0,91438.0,0.21872744]
[1764926395455,0.01093505,91449.0,91444.0,0.01093565]
[1764926395631,0.01093541,91446.0,91440.0,0.22965643]
[1764926395867,0.21870113,91449.0,91442.0,0.01093589]
[1764926396069,0.22964,91448.0,91441.0,0.01093601]
[1764926396290,0.01093529,91447.0,91442.0,0.01093589]
[1764926396494,0.21869042,91454.0,91437.0,0.42173268]
[1764926396495,0.21872712,91439.0,91437.0,0.07078926]
[1764926397354,0.0216,91438.0,91437.0,0.07078926]
[1764926397798,0.21872712,91439.0,91437.0,0.07078926]
[1764926398015,0.21972712,91439.0,91437.0,0.07078926]
[1764926398223,0.21972712,91439.0,91438.0,0.00058503]
[1764926398480,1.54347611,91439.0,91438.0,0.00058503]
[1764926398679,0.79645011,91439.0,91438.0,0.00058503]
[1764926398882,0.62585011,91439.0,91438.0,0.00058503]
[1764926399095,0.54172712,91439.0,91438.0,0.00058503]
[1764926399506,0.54472712,91439.0,91438.0,0.00058503]
[1764926399926,0.22172712,91439.0,91438.0,0.00058503]
[1764926400333,0.003,91439.0,91438.0,0.00058503]
[1764926400746,0.22966087,91440.0,91438.0,0.00058503]
[1764926400956,0.01093517,91448.0,91437.0,0.07078926]
[1764926401159,0.01093493,91450.0,91444.0,0.01093565]
[1764926401368,0.01093493,91450.0,91445.0,0.01093553]
[1764926401580,0.01093421,91456.0,91450.0,0.01093493]
[1764926401798,0.0109335,91462.0,91452.0,0.01093469]
[1764926402003,0.01093278,91468.0,91457.0,0.218682]
[1764926402214,0.0109317,91477.0,91458.0,0.17482918]
[1764926402430,0.2186148,91486.0,91458.0,0.17482918]
[1764926402639,0.00012,91510.0,91488.0,0.01093039]
[1764926402868,0.01092908,91499.0,91493.0,0.21859376]
[1764926403077,0.01092908,91499.0,91491.0,0.02157918]
[1764926403291,0.21858401,91498.0,91485.0,0.04874]
[1764926403546,0.01092908,91499.0,91492.0,0.01092991]
[1764926403756,0.01092884,91501.0,91496.0,0.01092943]
[1764926403961,0.01092896,91500.0,91493.0,0.01092979]
[1764926404186,0.01092908,91499.0,91493.0,0.01092979]
[1764926404402,0.01092872,91502.0,91497.0,0.01092932]
[1764926404605,0.0109292,91498.0,91494.0,0.01092967]
[1764926404832,0.00011998,91503.0,91500.0,0.01092896]
[1764926405041,0.01092932,91497.0,91491.0,0.03250921]
[1764926405247,0.01092932,91497.0,91489.0,0.01093027]
[1764926405248,0.22951827,91496.0,91489.0,0.01093027]
[1764926405460,0.0109292,91498.0,91492.0,0.01092991]
[1764926405669,0.01092991,91492.0,91488.0,0.01093039]
[1764926405877,0.00011998,91503.0,91502.0,0.35103363]
[1764926406097,0.00111998,91503.0,91502.0,0.44214363]
[1764926407097,0.00011998,91503.0,91502.0,0.21857445]
[1764926407293,0.00011998,91503.0,91500.0,0.01092896]
[1764926407474,0.00011998,91503.0,91499.0,0.01092908]
[1764926407677,0.21857445,91502.0,91492.0,0.01092991]
[1764926407882,0.00011998,91503.0,91500.0,0.21857734]
[1764926408093,0.01104858,91503.0,91498.0,0.0109292]
[1764926408298,0.01204858,91503.0,91499.0,0.01092908]
[1764926408546,0.00111998,91503.0,91500.0,0.01092896]
[1764926408851,0.00111998,91503.0,91495.0,0.01092955]
[1764926408852,0.00011998,91503.0,91492.0,0.01092991]
[1764926408995,0.22950727,91501.0,91496.0,0.2295175]
[1764926409199,0.22950727,91501.0,91495.0,0.01092955]
[1764926409554,0.22953166,91491.0,91483.0,0.02157918]
[1764926409759,0.01093015,91490.0,91484.0,0.01093087]
[1764926409917,0.01092991,91492.0,91486.0,0.01093063]
[1764926410115,0.01092979,91493.0,91488.0,0.01093039]
[1764926410320,0.2185804,91500.0,91495.0,0.01092955]
[1764926410520,0.2185804,91500.0,91480.0,0.5160029]
[1764926410521,0.01092967,91494.0,91489.0,0.01093027]
[1764926410746,0.01092967,91494.0,91490.0,0.01093015]
[1764926410908,0.01092955,91495.0,91491.0,0.01093003]
[1764926411159,0.01092967,91494.0,91491.0,0.01093003]
[1764926411366,0.22952206,91495.0,91491.0,0.01093003]
[1764926411606,0.01092967,91494.0,91491.0,0.01093003]
[1764926411812,0.01092967,91494.0,91490.0,0.01093015]
[1764926412223,0.001,91495.0,91492.0,0.21859834]
[1764926412538,0.001,91495.0,91494.0,0.30231274]
[1764926412759,0.001,91495.0,91494.0,0.21859356]
[1764926412892,0.001,91495.0,91490.0,0.01093015]
[1764926413108,0.001,91495.0,91492.0,0.2295266]
[1764926413289,0.001,91495.0,91494.0,0.21859356]
[1764926413716,0.01092872,91502.0,91497.0,0.01092932]
[1764926413917,0.00011998,91503.0,91500.0,0.01092896]
[1764926414117,0.00011998,91503.0,91500.0,0.22950575]
[1764926414318,0.01092872,91502.0,91498.0,0.0109292]
[1764926414587,0.00011998,91503.0,91499.0,0.01092908]
[1764926414792,0.01104858,91503.0,91498.0,0.0109292]
[1764926414943,0.00011998,91503.0,91499.0,0.01092908]
[1764926415146,0.0109292,91498.0,91491.0,0.01093003]
[1764926415355,0.2186319,91478.0,91468.0,0.01093278]
[1764926415572,0.01093218,91473.0,91469.0,0.21865331]
[1764926415738,0.00012,91455.0,91450.0,0.00023398]
[1764926415942,0.01093445,91454.0,91450.0,0.21893206]
[1764926416171,0.01093457,91453.0,91450.0,0.00023398]
[1764926416428,0.01093421,91456.0,91450.0,0.00023398]
[1764926416639,0.01093457,91453.0,91450.0,0.00023398]
[1764926416803,0.0109341,91457.0,91453.0,0.22962436]
[1764926417199,0.01093421,91456.0,91451.0,0.22962919]
[1764926417412,0.21865708,91468.0,91452.0,0.01093469]
[1764926417620,0.22960912,91460.0,91456.0,0.01093421]
[1764926417832,0.22960317,91463.0,91458.0,0.22961359]
[1764926418054,0.00012,91483.0,91458.0,0.22961359]
[1764926418055,0.01093326,91464.0,91460.0,0.01093374]
[1764926418271,0.01093326,91464.0,91461.0,0.22960487]
[1764926418484,0.22959432,91466.0,91462.0,0.21866919]
[1764926418690,0.01093302,91466.0,91462.0,0.21866919]
[1764926418956,0.01093147,91479.0,91475.0,0.01093194]
[1764926419171,0.21862463,91481.0,91474.0,0.01093206]
[1764926419391,0.2186079,91488.0,91482.0,0.2186206]
[1764926419609,0.21861139,91487.0,91483.0,0.22954947]
[1764926419819,0.01093063,91486.0,91482.0,0.0084505]
[1764926420024,0.01093039,91488.0,91482.0,0.0084505]
[1764926420025,0.01093039,91488.0,91482.0,0.01938161]
[1764926420232,0.01093051,91487.0,91483.0,0.01093099]
[1764926420442,0.22954916,91484.0,91481.0,0.04647]
[1764926420652,0.01105047,91487.0,91482.0,0.01093111]
[1764926420833,0.01093063,91486.0,91482.0,0.22955249]
[1764926421047,0.001,91486.0,91483.0,0.01093099]
[1764926421266,0.001,91486.0,91483.0,0.22955007]
[1764926421469,0.001,91486.0,91484.0,0.21861746]
[1764926421907,0.00011996,91487.0,91485.0,0.21861361]
[1764926422131,0.00011996,91487.0,91484.0,0.22954833]
[1764926422337,0.01093159,91478.0,91475.0,0.01093194]
[1764926422549,0.0109317,91477.0,91473.0,0.2295736]
[1764926422757,0.01093159,91478.0,91475.0,0.01093194]
[1764926422960,0.00011996,91487.0,91484.0,0.01093087]
[1764926423163,0.00011996,91487.0,91486.0,0.21861268]
[1764926423363,0.00011996,91487.0,91483.0,0.01093099]
[1764926423538,0.00111996,91487.0,91485.0,0.21861406]
[1764926423742,0.01093087,91484.0,91481.0,0.01093123]
[1764926423960,0.21861571,91485.0,91482.0,0.01093111]
[1764926424162,0.22955496,91482.0,91478.0,0.22956274]
[1764926424369,0.22955385,91482.0,91478.0,0.22956274]
[1764926424574,0.01093111,91482.0,91479.0,0.22956014]
[1764926424775,0.01093063,91486.0,91481.0,0.01093123]
[1764926425014,0.2186215,91483.0,91480.0,0.22955799]
[1764926425143,0.21863166,91479.0,91476.0,0.01093182]
[1764926425338,0.0109317,91477.0,91467.0,0.0109329]
[1764926425547,0.21864853,91471.0,91462.0,0.0109335]
[1764926425774,0.001,91485.0,91461.0,0.22960518]
[1764926425775,0.01093302,91466.0,91461.0,0.22960518]
[1764926426063,0.21865707,91468.0,91464.0,0.01093326]
[1764926426265,0.01093254,91470.0,91467.0,0.21865768]
[1764926426489,0.22958804,91469.0,91465.0,0.22959584]
[1764926426916,0.01093433,91455.0,91452.0,0.01093469]
[1764926427135,0.01093421,91456.0,91450.0,0.00023398]
[1764926427296,0.21869404,91452.0,91450.0,0.00023398]
[1764926427693,0.00024,91451.0,91450.0,0.00023398]
[1764926427989,0.12699041,91451.0,91450.0,0.00051162]
[1764926428215,0.12699337,91451.0,91450.0,0.00051162]
[1764926429187,0.01026545,91451.0,91450.0,0.00051162]
[1764926429394,0.01027341,91451.0,91450.0,0.00051162]
[1764926429796,0.01127341,91451.0,91450.0,0.00051162]
[1764926430288,0.02653441,91451.0,91450.0,0.00051162]
[1764926430693,0.02853441,91451.0,91450.0,0.00051162]
[1764926430855,0.05013441,91451.0,91450.0,0.00051162]
[1764926431056,0.15040109,91451.0,91450.0,0.00051162]
[1764926431481,0.02653441,91451.0,91450.0,0.00051162]
[1764926431814,0.01015341,91451.0,91450.0,0.00051162]
[1764926431937,0.01003341,91451.0,91450.0,0.00051162]
[1764926432140,0.21869404,91452.0,91450.0,0.00051162]
[1764926432337,0.01093433,91455.0,91450.0,0.00051162]
[1764926432536,0.21867995,91458.0,91453.0,0.22962507]
[1764926432753,0.01093457,91453.0,91450.0,0.00051162]
[1764926432947,0.002,91451.0,91450.0,0.00051162]
[1764926433394,0.2186945,91452.0,91450.0,0.00051162]
[1764926434768,0.2196945,91452.0,91450.0,0.00051162]
[1764926435389,0.1094259,91451.0,91450.0,0.00051162]
[1764926436210,0.1310259,91451.0,91450.0,0.00051162]
[1764926436662,0.1320259,91451.0,91450.0,0.00051162]
[1764926437492,0.017381,91451.0,91450.0,0.00051162]
[1764926437706,0.038981,91451.0,91450.0,0.00051162]
[1764926437905,0.017381,91451.0,91450.0,0.00051162]
[1764926438549,0.017381,91451.0,91414.0,0.07195124]
[1764926438550,0.0216,91430.0,91414.0,0.07195124]
[1764926438759,3.2663705,91420.0,91414.0,0.07195124]
[1764926439000,0.3292705,91420.0,91414.0,0.07195124]
[1764926439210,0.2187705,91420.0,91414.0,0.07195124]
[1764926439637,0.2187705,91420.0,91389.0,0.02188447]
[1764926439846,0.21882316,91398.0,91369.0,0.01094463]
[1764926440055,0.24042316,91398.0,91368.0,0.04647]
[1764926440282,0.21882316,91398.0,91368.0,0.04647]
[1764926441123,0.22022277,91398.0,91373.0,0.01094415]
[1764926441323,0.22022277,91398.0,91381.0,0.04747]
[1764926441752,0.22022277,91398.0,91382.0,0.01094307]
[1764926441925,0.22022277,91398.0,91384.0,0.21885598]
[1764926442158,0.22022277,91398.0,91387.0,0.01094247]
[1764926442341,0.22022277,91398.0,91390.0,0.01094211]
[1764926442542,0.22022277,91398.0,91388.0,0.01094235]
[1764926442763,0.21922277,91398.0,91390.0,0.01094211]
[1764926442976,0.00039961,91398.0,91394.0,0.01094163]
[1764926443182,0.00139961,91398.0,91397.0,0.0106929]
[1764926443385,0.00139961,91398.0,91397.0,9e-05]
[1764926443745,0.00039961,91398.0,91397.0,9e-05]
[1764926444152,0.00139961,91398.0,91397.0,9e-05]
[1764926447623,0.00039961,91398.0,91397.0,9e-05]
[1764926447840,0.00139961,91398.0,91397.0,9e-05]
[1764926448379,0.07156126,91398.0,91397.0,9e-05]
[1764926448562,0.00139961,91398.0,91397.0,9e-05]
[1764926449598,0.00039961,91398.0,91397.0,0.00164111]
[1764926449791,0.00239961,91398.0,91397.0,0.00164111]
[1764926450013,0.02399961,91398.0,91397.0,0.00164111]
[1764926450158,0.09642126,91398.0,91397.0,0.00164111]
[1764926450967,0.39582126,91398.0,91397.0,0.00164111]
[1764926451282,3.8118254,91398.0,91397.0,0.00164111]
[1764926451488,3.8118254,91398.0,91381.0,0.001]
[1764926451489,0.62598447,91382.0,91381.0,0.001]
[1764926451695,0.56346148,91382.0,91381.0,0.001]
[1764926452074,0.64908928,91382.0,91381.0,0.001]
[1764926452545,0.56496629,91382.0,91381.0,0.001]
[1764926453194,0.54186148,91382.0,91381.0,0.001]
[1764926453813,0.21886148,91382.0,91381.0,0.001]
[1764926454692,0.22979566,91386.0,91381.0,0.001]
[1764926454894,0.01094247,91387.0,91381.0,0.001]
[1764926454895,0.01094247,91387.0,91384.0,0.22979754]
[1764926455099,0.01094247,91387.0,91384.0,0.01094283]
[1764926455306,0.01094247,91387.0,91381.0,0.01194319]
[1764926455307,0.01094259,91386.0,91381.0,0.01194319]
[1764926455512,0.21886019,91383.0,91381.0,0.001]
[1764926455717,0.01094283,91384.0,91381.0,0.001]
[1764926455932,0.21886055,91383.0,91381.0,0.001]
[1764926457172,0.24046055,91383.0,91381.0,0.00146847]
[1764926457385,0.0216,91382.0,91381.0,0.001]
[1764926457605,0.21886055,91383.0,91381.0,0.001]
[1764926458641,0.10970506,91382.0,91381.0,0.001]
[1764926459697,0.323,91381.0,91360.0,0.0004]
[1764926459908,0.21891178,91361.0,91360.0,0.0004]
[1764926461194,0.21931114,91361.0,91360.0,0.0004]
[1764926461635,0.21931114,91361.0,91350.0,0.00011765]
[1764926461636,0.00039936,91361.0,91358.0,0.225263]
[1764926462035,0.00039936,91361.0,91360.0,0.21891418]
[1764926462625,0.00039936,91361.0,91360.0,0.27901418]
[1764926462981,0.00039936,91361.0,91360.0,0.28009778]
[1764926463184,0.00039936,91361.0,91360.0,0.0010836]
[1764926463517,0.21931114,91361.0,91360.0,0.0010836]
[1764926464067,0.00039936,91361.0,91360.0,0.0611836]
[1764926464256,0.00039936,91361.0,91360.0,0.05426938]
[1764926464824,0.00039936,91361.0,91360.0,0.24792997]
[1764926465028,0.00039936,91361.0,91360.0,0.22603856]
[1764926465428,0.00039936,91361.0,91360.0,0.13594856]
[1764926465800,0.00039936,91361.0,91360.0,0.08276278]
[1764926466112,0.00039936,91361.0,91360.0,0.10465419]
[1764926466320,0.00039936,91361.0,91360.0,0.08276278]
[1764926466562,0.00039936,91361.0,91360.0,0.0611836]
[1764926466768,0.00039936,91361.0,91360.0,0.1512736]
[1764926466971,0.00039936,91361.0,91360.0,0.18954601]
[1764926467173,0.00039936,91361.0,91360.0,0.21112519]
[1764926467394,0.00039936,91361.0,91360.0,0.19474419]
[1764926467801,0.00039936,91361.0,91360.0,0.02297501]
[1764926467995,0.21931114,91361.0,91360.0,0.0010836]
[1764926468368,0.00039936,91361.0,91360.0,0.0611836]
[1764926468570,0.00039936,91361.0,91360.0,0.37018778]
[1764926468773,0.00039936,91361.0,91360.0,0.1512736]
[1764926469768,0.02343762,91361.0,91360.0,0.0611836]
[1764926470142,0.02343762,91361.0,91360.0,0.28009778]
[1764926470551,0.02343762,91361.0,91360.0,0.0611836]
[1764926471761,0.00039936,91361.0,91360.0,0.19474419]
[1764926471934,0.00039936,91361.0,91360.0,0.17285278]
[1764926472135,0.00039936,91361.0,91360.0,0.1512736]
[1764926472340,0.00039936,91361.0,91360.0,0.0611836]
[1764926472792,0.00039936,91361.0,91360.0,0.1512736]
[1764926473628,0.00039936,91361.0,91360.0,0.17285278]
[1764926474045,0.02361759,91361.0,91360.0,0.0010836]
[1764926475628,0.03367812,91361.0,91360.0,0.0010836]
[1764926475805,0.02361759,91361.0,91360.0,0.0010836]
[1764926476144,0.03367811,91361.0,91360.0,0.0010836]
[1764926477500,0.02361759,91361.0,91360.0,0.0010836]
[1764926477906,0.02361759,91361.0,91360.0,0.11025955]
[1764926478596,0.00039936,91361.0,91360.0,0.21849055]
[1764926478802,0.00039936,91361.0,91360.0,0.26196114]
[1764926478974,0.00039936,91361.0,91360.0,0.24006973]
[1764926482789,0.00039936,91361.0,91360.0,0.56306973]
[1764926482989,0.02321823,91396.0,91394.0,0.21883063]
[1764926483195,0.02320854,91400.0,91398.0,0.22976431]
[1764926483408,0.01094032,91405.0,91402.0,0.01094067]
[1764926483646,0.01093984,91409.0,91406.0,0.0109402]
[1764926483864,0.0341479,91413.0,91410.0,0.05870972]
[1764926484079,0.02320854,91418.0,91415.0,0.21878247]
[1764926484290,0.01093768,91427.0,91423.0,0.01093816]
[1764926484502,0.02901291,91438.0,91432.0,0.21874001]
[1764926484712,0.01093589,91442.0,91433.0,0.22967525]
[1764926484923,0.22966223,91439.0,91434.0,0.22967386]
[1764926485146,0.05222145,91445.0,91442.0,0.01093589]
[1764926485363,0.01093517,91448.0,91444.0,0.01093565]
[1764926485572,0.01093469,91452.0,91449.0,0.01093505]
[1764926485792,0.01093457,91453.0,91449.0,0.01093505]
[1764926485992,0.0002,91460.0,91453.0,0.01093457]
[1764926485993,0.01093398,91458.0,91453.0,0.01093457]
[1764926486205,0.0002,91460.0,91459.0,0.04777]
[1764926486413,0.01113374,91460.0,91457.0,0.0109341]
[1764926486621,0.0002,91460.0,91459.0,0.062]
[1764926486828,0.0002,91460.0,91459.0,0.32310857]
[1764926487086,0.0002,91460.0,91459.0,0.10443135]
[1764926487763,0.0002,91460.0,91459.0,0.19628135]
[1764926487989,0.0002,91460.0,91459.0,0.02157918]
[1764926488107,0.21867722,91459.0,91457.0,0.02157918]
[1764926488310,0.0002,91460.0,91450.0,0.26646635]
[1764926488515,0.0002,91460.0,91457.0,0.0109341]
[1764926488736,0.01113374,91460.0,91457.0,0.0109341]
[1764926488951,0.0002,91460.0,91459.0,0.062]
[1764926490430,0.0002,91460.0,91459.0,0.15385]
[1764926490744,0.21867722,91459.0,91458.0,0.02157918]
[1764926490955,0.21867722,91459.0,91458.0,0.05881024]
[1764926491156,0.21867722,91459.0,91458.0,0.02157918]
[1764926491980,0.0002,91460.0,91458.0,0.39410879]
[1764926492184,0.0002,91460.0,91459.0,0.062]
[1764926492391,0.0002,91460.0,91459.0,0.15385]
[1764926492583,0.0002,91460.0,91459.0,0.062]
[1764926492799,0.0002,91460.0,91459.0,0.23328029]
[1764926493425,0.0002,91460.0,91459.0,0.17542918]
[1764926493804,0.0002,91460.0,91459.0,0.19181018]
[1764926494113,0.0002,91460.0,91459.0,0.17542918]
[1764926494910,0.0002,91460.0,91459.0,0.19181018]
[1764926496585,0.0002,91460.0,91459.0,0.51481018]
[1764926498289,0.0002,91460.0,91459.0,1.15002618]
[1764926498730,0.00239005,91463.0,91462.0,1.41906621]
[1764926498987,0.00239005,91463.0,91462.0,1.48091421]
[1764926499200,0.01092932,91497.0,91492.0,0.01092991]
[1764926499449,0.01092943,91496.0,91494.0,0.062]
[1764926499670,0.22950955,91500.0,91496.0,0.13134918]
[1764926499886,0.22949776,91505.0,91502.0,0.21857382]
[1764926500131,0.2185725,91503.0,91499.0,0.07292908]
[1764926500339,0.010928,91508.0,91496.0,0.04777]
[1764926500340,0.2294834,91510.0,91507.0,0.04777]
[1764926500549,0.2294834,91510.0,91508.0,0.03502034]
[1764926500550,0.21855811,91509.0,91508.0,0.03502034]
[1764926500985,0.0004001,91510.0,91508.0,0.18887034]
[1764926501195,0.0004001,91510.0,91509.0,0.39398691]
[1764926503541,0.0004001,91510.0,91476.0,0.09185]
[1764926503751,0.0004001,91510.0,91458.0,0.04777]
[1764926503752,0.01093278,91468.0,91461.0,0.04777]
[1764926503975,0.01093314,91465.0,91462.0,0.009554]
[1764926504187,0.01093314,91465.0,91462.0,0.0423545]
[1764926504395,0.01093314,91465.0,91463.0,0.02157918]
[1764926504396,0.22959732,91465.0,91463.0,0.02157918]
[1764926504606,0.21866765,91463.0,91462.0,0.009554]
[1764926505026,0.00039986,91463.0,91462.0,0.009554]
[1764926505459,0.00039986,91463.0,91462.0,0.075204]
[1764926505679,0.00039986,91463.0,91462.0,0.23262118]
[1764926506099,0.00039986,91463.0,91462.0,0.09678318]
[1764926506572,0.00039986,91463.0,91462.0,0.009554]
[1764926506779,0.21906972,91463.0,91461.0,0.04777]
[1764926506979,0.00039986,91463.0,91461.0,0.04777]
[1764926507741,0.00039986,91463.0,91461.0,0.26644063]
[1764926507914,0.00039986,91463.0,91461.0,0.26644106]
[1764926508064,0.00039986,91463.0,91461.0,0.32410298]
[1764926508275,0.21906771,91463.0,91461.0,0.10543192]
[1764926508478,0.00039986,91463.0,91461.0,0.32410321]
[1764926508681,0.00039986,91463.0,91461.0,0.05766192]
[1764926508999,0.00039986,91463.0,91462.0,0.21867004]
[1764926509204,0.00039986,91463.0,91462.0,0.02284794]
[1764926509406,0.00039986,91463.0,91462.0,0.24151798]
[1764926509737,0.00039986,91463.0,91462.0,0.42633716]
[1764926510153,0.00039986,91463.0,91462.0,0.26309716]
[1764926510383,0.00039986,91463.0,91462.0,0.24151798]
[1764926510799,0.00039986,91463.0,91462.0,0.30716798]
[1764926511002,0.00039986,91463.0,91462.0,0.40475798]
[1764926511439,0.00039986,91463.0,91462.0,0.18608794]
[1764926512542,0.00039986,91463.0,91462.0,0.22953412]
[1764926512744,0.00039986,91463.0,91462.0,0.20766712]
[1764926513543,0.00039986,91463.0,91462.0,0.18608794]
[1764926513750,0.00039986,91463.0,91462.0,0.20766712]
[1764926518537,0.00039986,91463.0,91462.0,0.42633716]
[1764926519152,0.00039986,91463.0,91461.0,0.04748]
[1764926519355,0.22964514,91446.0,91441.0,0.01093601]
[1764926519562,0.01093541,91446.0,91442.0,0.01093589]
[1764926519795,0.01093433,91455.0,91447.0,0.01093529]
[1764926519993,0.01093481,91451.0,91447.0,0.03251447]
[1764926520195,0.01093433,91455.0,91454.0,0.06565]
[1764926520405,0.0109335,91462.0,91457.0,0.02157918]
[1764926520555,0.0109335,91462.0,91458.0,0.04371174]
[1764926520930,0.00039986,91463.0,91462.0,0.24024922]
[1764926521134,0.02901291,91487.0,91459.0,0.02731486]
[1764926521135,0.02901291,91491.0,91486.0,0.01093063]
[1764926521344,0.21859738,91493.0,91491.0,0.04748]
[1764926521545,0.00011989,91493.0,91492.0,0.20077904]
[1764926522319,0.00011989,91493.0,91492.0,0.11383831]
[1764926522517,0.00011989,91493.0,91492.0,0.21142831]
[1764926522812,0.21935889,91493.0,91492.0,0.02660913]
[1764926523014,0.21935889,91493.0,91479.0,0.09759]
[1764926523015,0.01093087,91484.0,91479.0,0.09759]
[1764926523197,0.01093015,91490.0,91468.0,0.01093278]
[1764926523198,0.01093218,91473.0,91468.0,0.01093278]
[1764926523416,0.22957657,91473.0,91470.0,0.14507]
[1764926523815,0.01093218,91473.0,91470.0,0.05841254]
[1764926524016,0.01093338,91463.0,91459.0,0.09759]
[1764926524248,0.01093242,91471.0,91459.0,0.09759]
[1764926524437,0.01093194,91475.0,91466.0,0.01093302]
[1764926524635,0.01093278,91468.0,91465.0,0.01093314]
[1764926525059,0.0109323,91472.0,91469.0,0.01093266]
[1764926525257,0.01093194,91475.0,91471.0,0.06565]
[1764926525258,0.22957498,91474.0,91471.0,0.06565]
[1764926525523,0.01093206,91474.0,91471.0,0.01093242]
[1764926525761,0.0109317,91477.0,91473.0,0.06565]
[1764926526009,0.01093123,91481.0,91477.0,0.28428312]
[1764926526215,0.22956218,91479.0,91476.0,0.02157918]
[1764926526552,0.01093182,91476.0,91472.0,0.21864504]
[1764926526855,0.01093063,91486.0,91482.0,0.21862035]
[1764926527008,0.01093075,91485.0,91482.0,0.01093111]
[1764926527225,0.22954765,91485.0,91482.0,0.01093111]
[1764926527428,0.22954765,91485.0,91481.0,0.01093123]
[1764926527624,0.22966445,91486.0,91482.0,0.01093111]
[1764926527625,0.00011991,91486.0,91482.0,0.01093111]
[1764926527828,0.00011991,91486.0,91485.0,0.06565]
[1764926528127,0.00011991,91486.0,91485.0,0.08722918]
[1764926528326,0.00011991,91486.0,91485.0,0.18481918]
[1764926528572,0.00011991,91486.0,91485.0,0.16324]
[1764926528774,0.00055839,91486.0,91485.0,0.18481918]
[1764926529485,0.05771638,91520.0,91485.0,0.18481918]
[1764926529486,0.01092764,91511.0,91506.0,0.22949174]
[1764926529626,0.22947584,91513.0,91509.0,0.01092788]
[1764926529966,0.22947584,91513.0,91508.0,0.010928]
[1764926529967,0.21855127,91512.0,91510.0,0.04748]
[1764926530368,0.21855127,91512.0,91511.0,0.16324]
[1764926530529,0.21855127,91512.0,91511.0,0.17717159]
[1764926530721,0.01092717,91515.0,91511.0,0.40665169]
[1764926530959,0.00011986,91515.0,91514.0,0.06565]
[1764926531336,0.00011986,91515.0,91514.0,0.18481918]
[1764926532396,0.00011986,91515.0,91514.0,0.16324]
[1764926532554,0.00011986,91515.0,91514.0,0.22981827]
[1764926533197,0.00011986,91515.0,91514.0,0.25139745]
[1764926535975,0.00011986,91515.0,91514.0,0.26777845]
[1764926536177,0.00011986,91515.0,91514.0,0.22981827]
[1764926536511,0.00011986,91515.0,91514.0,0.25139745]
[1764926540448,0.00096724,91515.0,91514.0,0.25139745]
[1764926541051,0.00096724,91515.0,91514.0,0.46994324]
[1764926541827,0.01112299,91550.0,91546.0,0.01092347]
[1764926542033,0.21846748,91547.0,91545.0,0.0467]
[1764926542239,0.21846748,91547.0,91546.0,0.00685482]
[1764926543303,0.21846701,91547.0,91546.0,0.00685482]
[1764926543721,0.22970268,91550.0,91549.0,0.02157918]
[1764926543931,0.22970268,91550.0,91549.0,0.08359918]
[1764926544304,0.00031984,91550.0,91549.0,0.08359918]
[1764926544516,0.00031984,91550.0,91549.0,0.21739132]
[1764926544698,0.21877969,91550.0,91549.0,0.10195214]
[1764926545376,0.21877969,91550.0,91549.0,0.03993214]
[1764926545570,0.21846701,91547.0,91546.0,0.00685482]
[1764926546173,0.00031984,91550.0,91549.0,0.02157918]
[1764926546332,0.00031984,91550.0,91549.0,0.08359918]
[1764926546528,0.00031984,91550.0,91549.0,0.37434224]
[1764926546771,0.21877969,91550.0,91549.0,0.06202]
[1764926547179,0.2184694,91546.0,91545.0,0.03355482]
[1764926548382,0.21846748,91547.0,91545.0,0.09557482]
[1764926548788,0.21846748,91547.0,91546.0,0.06202]
[1764926548974,0.00031984,91550.0,91549.0,0.21846224]
[1764926549174,0.00031984,91550.0,91549.0,0.06202]
[1764926549394,0.00031984,91550.0,91549.0,0.39592142]
[1764926550018,0.21877969,91550.0,91549.0,0.17745918]
[1764926550359,0.2184694,91546.0,91545.0,0.03355482]
[1764926550502,0.21846702,91547.0,91545.0,0.0625819]
[1764926550706,0.22938786,91548.0,91547.0,0.06202]
[1764926550906,0.01092406,91541.0,91535.0,0.03250396]
[1764926551113,0.01092406,91541.0,91536.0,0.016381]
[1764926551114,0.01092418,91540.0,91536.0,0.016381]
[1764926551515,0.21848694,91539.0,91537.0,0.09386]
[1764926551712,0.01092418,91540.0,91539.0,0.06202]
[1764926551922,0.2294079,91540.0,91539.0,0.06202]
[1764926552126,0.2294079,91540.0,91539.0,0.15588]
[1764926552127,0.21848372,91540.0,91539.0,0.15588]
[1764926552652,0.21848372,91540.0,91539.0,0.06202]
[1764926553034,0.21848372,91540.0,91535.0,0.02730578]
[1764926553035,0.01092394,91542.0,91535.0,0.03250396]
[1764926553243,0.0109237,91544.0,91539.0,0.0109243]
[1764926553443,0.21848451,91540.0,91537.0,0.22941309]
[1764926553585,0.22940771,91541.0,91540.0,0.01263635]
[1764926553786,0.01092454,91537.0,91528.0,0.01092561]
[1764926553990,0.21851236,91528.0,91522.0,0.01092633]
[1764926554216,0.01092466,91536.0,91531.0,0.21850467]
[1764926554390,0.01092382,91543.0,91538.0,0.01092442]
[1764926554600,0.2184719,91545.0,91543.0,0.02157918]
[1764926554601,0.21847485,91544.0,91543.0,0.02157918]
[1764926554784,0.21847485,91544.0,91543.0,0.2514437]
[1764926555007,0.21847217,91545.0,91543.0,0.2514437]
[1764926555212,0.21847217,91545.0,91544.0,0.06202]
[1764926555637,0.21847217,91545.0,91543.0,0.0467]
[1764926560503,0.21847217,91545.0,91529.0,0.21850905]
[1764926560504,0.01092478,91535.0,91530.0,0.09386]
[1764926560723,0.2294488,91524.0,91518.0,0.09386]
[1764926560943,0.2294488,91524.0,91520.0,0.05762657]
[1764926560944,0.22944821,91524.0,91520.0,0.05762657]